fUSD/lending_fUSD_20250105
["ID","MTS","AMOUNT","RATE_DAILY","PERIOD"]
[347728161,1736085047243,-6794.55,8.219e-05,2]
[347728163,1736085047252,-500.0,8.219e-05,2]
[347728165,1736085047262,-500.0,8.219e-05,2]
[347728167,1736085047270,-500.0,8.219e-05,2]
[347728168,1736085047280,-500.0,8.219e-05,2]
[347728171,1736085047291,-500.0,8.219e-05,2]
[347728173,1736085047302,-500.0,8.219e-05,2]
[347728175,1736085047312,-500.0,8.219e-05,2]
[347728176,1736085047321,-500.0,8.219e-05,2]
[347728178,1736085047330,-500.0,8.219e-05,2]
[347728180,1736085047339,-500.0,8.219e-05,2]
[347728183,1736085047349,-1292.61,8.219e-05,2]
[347728184,1736085047358,-500.0,8.219e-05,2]
[347728186,1736085047367,-500.0,8.219e-05,2]
[347728189,1736085047377,-1119.43,8.219e-05,2]
[347728191,1736085047387,-500.0,8.219e-05,2]
[347728192,1736085047396,-5917.76,8.219e-05,2]
[347728194,1736085047406,-500.0,8.219e-05,2]
[347728196,1736085047415,-500.0,8.219e-05,2]
[347728199,1736085047425,-500.0,8.219e-05,2]
[347728200,1736085047434,-500.0,8.219e-05,2]
[347728202,1736085047443,-3648.72,8.219e-05,2]
[347728204,1736085047453,-500.0,8.219e-05,2]
[347728206,1736085047462,-500.0,8.219e-05,2]
[347728208,1736085047471,-500.0,8.219e-05,2]
[347728210,1736085047481,-1313.15,8.219e-05,2]
[347728212,1736085047490,-500.0,8.219e-05,2]
[347728214,1736085047500,-1214.15,8.219e-05,2]
[347728216,1736085047509,-3878.53,8.219e-05,2]
[347728218,1736085047518,-500.0,8.219e-05,2]
[347728220,1736085047528,-500.0,8.219e-05,2]
[347728222,1736085047536,-500.0,8.219e-05,2]
[347728224,1736085047545,-500.0,8.219e-05,2]
[347728226,1736085047555,-500.0,8.219e-05,2]
[347728228,1736085047564,-2181.12,8.219e-05,2]
[347728230,1736085047573,-500.0,8.219e-05,2]
[347728232,1736085047583,-547.57,8.219e-05,2]
[347728234,1736085047592,-500.0,8.219e-05,2]
[347728236,1736085047601,-2042.81,8.219e-05,2]
[347728238,1736085047611,-2064.57,8.219e-05,2]
[347728240,1736085047620,-535.76,8.219e-05,2]
[347728242,1736085047629,-500.0,8.219e-05,2]
[347728244,1736085047639,-500.0,8.219e-05,2]
[347728246,1736085047648,-500.0,8.219e-05,2]
[347728248,1736085047658,-3250.96,8.219e-05,2]
[347728250,1736085047667,-670.02,8.219e-05,2]
[347728252,1736085047676,-500.0,8.219e-05,2]
[347728254,1736085047685,-500.0,8.219e-05,2]
[347728256,1736085047694,-507.08,8.219e-05,2]
[347728258,1736085047704,-500.0,8.219e-05,2]
[347728260,1736085047712,-2017.41,8.219e-05,2]
[347728262,1736085047721,-7232.2,8.219e-05,2]
[347728264,1736085047730,-1422.85,8.219e-05,2]
[347728266,1736085047739,-500.2156222,8.219e-05,2]
[347728268,1736085047749,-714.19,8.219e-05,2]
[347728270,1736085047758,-500.0,8.219e-05,2]
[347728272,1736085047767,-500.0,8.219e-05,2]
[347728274,1736085047776,-500.0,8.219e-05,2]
[347728276,1736085047786,-156.287959,8.219e-05,2]
[347728278,1736085047795,-3296.1,8.219e-05,2]
[347728280,1736085047803,-500.0,8.219e-05,2]
[347728282,1736085047813,-8498.78,8.219e-05,2]
[347728284,1736085047822,-1584.53,8.219e-05,2]
[347728286,1736085047830,-500.0,8.219e-05,2]
[347728288,1736085047839,-500.0,8.219e-05,2]
[347728289,1736085047848,-500.0,8.219e-05,2]
[347728292,1736085047857,-559.86,8.219e-05,2]
[347728293,1736085047866,-1027.98,8.219e-05,2]
[347728295,1736085047875,-500.0,8.219e-05,2]
[347728297,1736085047884,-500.0,8.219e-05,2]
[347728299,1736085047894,-153.671496,8.219e-05,2]
[347728301,1736085047903,-500.0,8.219e-05,2]
[347728303,1736085047912,-500.0,8.219e-05,2]
[347728305,1736085047921,-500.0,8.219e-05,2]
[347728307,1736085047930,-2989.08,8.219e-05,2]
[347728309,1736085047939,-1642.39,8.219e-05,2]
[347728311,1736085047948,-500.0,8.219e-05,2]
[347728313,1736085047957,-500.0,8.219e-05,2]
[347728315,1736085047966,-500.0,8.219e-05,2]
[347728317,1736085047975,-500.0,8.219e-05,2]
[347728319,1736085047984,-3433.06,8.219e-05,2]
[347728320,1736085047992,-500.0,8.219e-05,2]
[347728321,1736085048001,-965.4,8.219e-05,2]
[347728322,1736085048010,-500.0,8.219e-05,2]
[347728323,1736085048019,-504.62,8.219e-05,2]
[347728324,1736085048028,-500.0,8.219e-05,2]
[347728325,1736085048037,-500.0,8.219e-05,2]
[347728326,1736085048046,-1810.8,8.219e-05,2]
[347728327,1736085048054,-500.0,8.219e-05,2]
[347728328,1736085048063,-500.0,8.219e-05,2]
[347728329,1736085048072,-500.0,8.219e-05,2]
[347728330,1736085048081,-1997.41,8.219e-05,2]
[347728331,1736085048090,-500.0,8.219e-05,2]
[347728332,1736085048099,-500.0,8.219e-05,2]
[347728334,1736085048108,-500.0,8.219e-05,2]
[347728336,1736085048117,-586.67,8.219e-05,2]
[347728338,1736085048126,-500.0,8.219e-05,2]
[347728340,1736085048136,-1122.89,8.219e-05,2]
[347728342,1736085048145,-500.0,8.219e-05,2]
[347728344,1736085048155,-3874.9,8.219e-05,2]
[347728346,1736085048165,-500.0,8.219e-05,2]
[347728348,1736085048174,-1135.42,8.219e-05,2]
[347728350,1736085048183,-1707.67,8.219e-05,2]
[347728352,1736085048192,-1558.84,8.219e-05,2]
[347728354,1736085048201,-500.0,8.219e-05,2]
[347728356,1736085048211,-500.0,8.219e-05,2]
[347728358,1736085048220,-500.0,8.219e-05,2]
[347728360,1736085048229,-500.0,8.219e-05,2]
[347728362,1736085048239,-500.0,8.219e-05,2]
[347728364,1736085048248,-661.74,8.219e-05,2]
[347728366,1736085048260,-500.0,8.219e-05,2]
[347728368,1736085048269,-1163.13,8.219e-05,2]
[347728370,1736085048279,-500.0,8.219e-05,2]
[347728372,1736085048288,-156.68399,8.219e-05,2]
[347728374,1736085048301,-1188.08,8.219e-05,2]
[347728376,1736085048310,-500.0,8.219e-05,2]
[347728378,1736085048319,-500.0,8.219e-05,2]
[347728380,1736085048328,-500.0,8.219e-05,2]
[347728382,1736085048338,-950.5,8.219e-05,2]
[347728384,1736085048348,-3190.26,8.219e-05,2]
[347728386,1736085048358,-500.0,8.219e-05,2]
[347728388,1736085048368,-500.0,8.219e-05,2]
[347728390,1736085048378,-4343.25,8.219e-05,2]
[347728392,1736085048388,-1609.13,8.219e-05,2]
[347728394,1736085048398,-500.0,8.219e-05,2]
[347728396,1736085048407,-526.16,8.219e-05,2]
[347728398,1736085048416,-500.0,8.219e-05,2]
[347728400,1736085048425,-500.0,8.219e-05,2]
[347728402,1736085048434,-278.72029584,8.219e-05,2]
[347728404,1736085048443,-889.06,8.219e-05,2]
[347728406,1736085048452,-500.0,8.219e-05,2]
[347728408,1736085048462,-500.0,8.219e-05,2]
[347728410,1736085048471,-500.0,8.219e-05,2]
[347728412,1736085048481,-500.0,8.219e-05,2]
[347728414,1736085048490,-1348.43,8.219e-05,2]
[347728416,1736085048499,-1683.57,8.219e-05,2]
[347728418,1736085048510,-1813.55,8.219e-05,2]
[347728420,1736085048519,-500.0,8.219e-05,2]
[347728422,1736085048529,-500.0,8.219e-05,2]
[347728424,1736085048539,-500.0,8.219e-05,2]
[347728426,1736085048548,-544.38,8.219e-05,2]
[347728428,1736085048557,-1069.05,8.219e-05,2]
[347728430,1736085048566,-500.0,8.219e-05,2]
[347728432,1736085048576,-500.0,8.219e-05,2]
[347728434,1736085048586,-500.0,8.219e-05,2]
[347728436,1736085048595,-500.0,8.219e-05,2]
[347728438,1736085048605,-1368.89,8.219e-05,2]
[347728440,1736085048614,-500.0,8.219e-05,2]
[347728442,1736085048623,-500.0,8.219e-05,2]
[347728444,1736085048633,-441.054282,8.219e-05,2]
[347728446,1736085048642,-2786.65,8.219e-05,2]
[347728448,1736085048652,-500.0,8.219e-05,2]
[347728449,1736085048661,-2257.82,8.219e-05,2]
[347728452,1736085048671,-500.0,8.219e-05,2]
[347728454,1736085048680,-784.83,8.219e-05,2]
[347728455,1736085048689,-2503.79,8.219e-05,2]
[347728458,1736085048699,-7143.27,8.219e-05,2]
[347728460,1736085048708,-500.0,8.219e-05,2]
[347728461,1736085048718,-2328.99,8.219e-05,2]
[347728464,1736085048727,-500.0,8.219e-05,2]
[347728466,1736085048737,-500.0,8.219e-05,2]
[347728467,1736085048746,-4657.26,8.219e-05,2]
[347728469,1736085048757,-500.0,8.219e-05,2]
[347728471,1736085048766,-500.0,8.219e-05,2]
[347728474,1736085048776,-812.03,8.219e-05,2]
[347728475,1736085048785,-500.0,8.219e-05,2]
[347728477,1736085048794,-594.32120065,8.219e-05,2]
[347728479,1736085048803,-500.0,8.219e-05,2]
[347728482,1736085048813,-1672.7,8.219e-05,2]
[347728483,1736085048823,-500.0,8.219e-05,2]
[347728485,1736085048832,-1424.21,8.219e-05,2]
[347728487,1736085048841,-734.64,8.219e-05,2]
[347728489,1736085048851,-314.74300511,8.219e-05,2]
[347728491,1736085048860,-500.0,8.219e-05,2]
[347728494,1736085048870,-1865.16,8.219e-05,2]
[347728495,1736085048879,-742.39,8.219e-05,2]
[347728498,1736085048888,-1037.39,8.219e-05,2]
[347728500,1736085048897,-500.0,8.219e-05,2]
[347728502,1736085048907,-811.44,8.219e-05,2]
[347728504,1736085048916,-2207.33,8.219e-05,2]
[347728505,1736085048927,-500.0,8.219e-05,2]
[347728508,1736085048937,-2862.45,8.219e-05,2]
[347728509,1736085048946,-500.0,8.219e-05,2]
[347728511,1736085048956,-500.0,8.219e-05,2]
[347728513,1736085048965,-500.0,8.219e-05,2]
[347728515,1736085048974,-1063.62,8.219e-05,2]
[347728518,1736085048984,-652.63645,8.219e-05,2]
[347728519,1736085048993,-500.0,8.219e-05,2]
[347728521,1736085049003,-7182.84,8.219e-05,2]
[347728523,1736085049012,-500.0,8.219e-05,2]
[347728525,1736085049022,-500.0,8.219e-05,2]
[347728527,1736085049031,-500.0,8.219e-05,2]
[347728528,1736085049040,-1028.35,8.219e-05,2]
[347728529,1736085049050,-500.0,8.219e-05,2]
[347728530,1736085049059,-500.0,8.219e-05,2]
[347728531,1736085049068,-2092.33,8.219e-05,2]
[347728532,1736085049078,-1190.51,8.219e-05,2]
[347728533,1736085049087,-967.41,8.219e-05,2]
[347728534,1736085049096,-500.0,8.219e-05,2]
[347728535,1736085049106,-16499.63,8.219e-05,2]
[347728536,1736085049115,-500.0,8.219e-05,2]
[347728537,1736085049124,-849.97,8.219e-05,2]
[347728538,1736085049134,-500.0,8.219e-05,2]
[347728539,1736085049143,-500.0,8.219e-05,2]
[347728540,1736085049152,-167.6,8.219e-05,2]
[347728541,1736085049162,-151.0,8.219e-05,2]
[347728542,1736085049171,-151.0,8.219e-05,2]
[347728543,1736085049181,-163.88,8.219e-05,2]
[347728544,1736085049190,-1000.0,8.219e-05,2]
[347728545,1736085049199,-1540.14,8.219e-05,2]
[347728546,1736085049209,-1843.35,8.219e-05,2]
[347728547,1736085049218,-250.0,8.219e-05,2]
[347728548,1736085049227,-150.0,8.233e-05,2]
[347728549,1736085049237,-3146.0,8.247e-05,2]
[347728550,1736085049246,-500.0,8.263e-05,2]
[347728551,1736085049256,-152.02156638,8.263e-05,2]
[347728552,1736085049266,-152.0210055,8.263e-05,2]
[347728553,1736085049275,-151.02142396,8.263e-05,2]
[347728554,1736085049285,-152.02156386,8.263e-05,2]
[347728555,1736085049295,-152.02100692,8.263e-05,2]
[347728556,1736085049304,-152.02156852,8.263e-05,2]
[347728557,1736085049314,-161.54689447,8.274e-05,2]
[347728558,1736085049323,-150.0,8.274e-05,2]
[347728559,1736085049333,-150.0,8.274e-05,2]
[347728560,1736085049342,-156.1341885,8.274e-05,2]
[347728561,1736085049352,-19527.0,8.274e-05,2]
[347728562,1736085049362,-800.0,8.274e-05,2]
[347728563,1736085049371,-431.0,8.274e-05,2]
[347728564,1736085049381,-118468.01748958,8.287e-05,2]
[347728565,1736085049391,-1238.32798221,8.287e-05,3]
[347728566,1736085049400,-500.0,8.287e-05,2]
[347728567,1736085049411,-1552.68,8.287e-05,2]
[347728568,1736085049420,-1552.68,8.287e-05,2]
[347728569,1736085049430,-1552.68,8.287e-05,2]
[347728570,1736085049440,-1552.68,8.287e-05,2]
[347728571,1736085049449,-1552.68,8.287e-05,2]
[347728572,1736085049458,-1552.68,8.287e-05,2]
[347728573,1736085049467,-1552.68,8.287e-05,2]
[347728574,1736085049477,-1552.68,8.287e-05,2]
[347728575,1736085049487,-1552.68,8.287e-05,2]
[347728576,1736085049496,-1552.68,8.287e-05,2]
[347728577,1736085049506,-1552.68,8.287e-05,2]
[347728578,1736085049516,-1552.68,8.287e-05,2]
[347728579,1736085049526,-1552.68,8.287e-05,2]
[347728580,1736085049536,-1552.68,8.287e-05,2]
[347728581,1736085049545,-1552.68,8.287e-05,2]
[347728582,1736085049555,-1552.68,8.287e-05,2]
[347728583,1736085049565,-1552.68,8.287e-05,2]
[347728584,1736085049574,-1552.68,8.287e-05,2]
[347728585,1736085049585,-1552.68,8.287e-05,2]
[347728586,1736085049594,-1552.68,8.287e-05,2]
[347728587,1736085049603,-1552.68,8.287e-05,2]
[347728588,1736085049613,-1552.74,8.287e-05,2]
[347728589,1736085049622,-2558.89,8.287e-05,2]
[347728590,1736085049632,-3795.43,8.287e-05,2]
[347728591,1736085049642,-5749.73,8.287e-05,2]
[347728592,1736085049652,-10223.7,8.287e-05,2]
[347728593,1736085049661,-151.0,8.288e-05,2]
[347728594,1736085049671,-1214792.46017075,8.288e-05,2]
[347728595,1736085050803,-500.0,8.219e-05,2]
[347728596,1736085050813,-606.57,8.219e-05,2]
[347728597,1736085050823,-40.08714572,8.288e-05,2]
[347728598,1736085050933,-531.18699998,8.288e-05,2]
[347728599,1736085050971,-1526.95,8.219e-05,2]
[347728600,1736085050981,-1043457.7774846,8.288e-05,2]
[347728601,1736085050993,-2367.26859173,8.288e-05,2]
[347728602,1736085051006,-7605.56436298,8.288e-05,2]
[347728603,1736085051018,-9888.3470019,8.288e-05,2]
[347728604,1736085051044,-116362.02185301,8.288e-05,2]
[347728605,1736085051055,-282.68662595,8.288e-05,2]
[347728606,1736085051070,-6197.33498748,8.288e-05,2]
[347728607,1736085051861,-500.0,8.219e-05,2]
[347728608,1736085051871,-500.0,8.219e-05,2]
[347728609,1736085051880,-500.0,8.219e-05,2]
[347728610,1736085051889,-4309.64591392,8.288e-05,2]
[347728611,1736085051900,-6064.0000005,8.288e-05,2]
[347728612,1736085052028,-47386.32095257,8.288e-05,2]
[347728613,1736085052039,-10730.70180181,8.288e-05,2]
[347728614,1736085052050,-52328.76563707,8.288e-05,2]
[347728615,1736085052061,-4858.11589993,8.288e-05,2]
[347728616,1736085052085,-3087.07355343,8.288e-05,2]
[347728617,1736085052107,-8706499.09654233,8.288e-05,2]
[347728618,1736085052126,-2793.97586768,8.288e-05,2]
[347728619,1736085052143,-252.77790372,8.288e-05,2]
[347728624,1736085338118,2000.0,0.000121,24]
[347728633,1736085657188,250.0,0.00022,120]
[347728634,1736085672725,250.0,0.00021,120]
[347728635,1736085683740,250.0,0.00022,120]
[347728636,1736085704137,250.0,0.00022,120]
[347728639,1736086142167,300.0,7.534e-05,2]
[347728640,1736086151033,-23900.0,7.535e-05,2]
[347728641,1736086151061,-250.0,7.535e-05,2]
[347728642,1736086151089,-550.0,7.535e-05,2]
[347728643,1736086178033,-1158.15944762,7.535e-05,2]
[347728644,1736086178062,-468.12,7.681e-05,2]
[347728645,1736086178088,-1569.87,7.718e-05,2]
[347728646,1736086178114,-250.0,7.739e-05,2]
[347728647,1736086178140,-150.0,7.89e-05,2]
[347728648,1736086178166,-150.0,7.89e-05,2]
[347728649,1736086178193,-150.0,7.89e-05,2]
[347728650,1736086178220,-150.0,7.89e-05,2]
[347728651,1736086202592,873.67,7.11e-05,2]
[347728653,1736086226215,250.0,7.096e-05,2]
[347728654,1736086226341,2583.32999963,6.881e-05,7]
[347728655,1736086232389,-150.0,7.905e-05,2]
[347728656,1736086232399,-316.19337842,7.919e-05,2]
[347728657,1736086232409,-150.0,7.919e-05,2]
[347728658,1736086232418,-316.19337842,7.926e-05,2]
[347728659,1736086232427,-316.19337842,7.933e-05,2]
[347728660,1736086232437,-150.0,7.934e-05,2]
[347728661,1736086232447,-150.0,7.937e-05,2]
[347728662,1736086232457,-150.0,7.945e-05,2]
[347728663,1736086232466,-1145.87,7.945e-05,2]
[347728664,1736086232476,-150.0,7.948e-05,2]
[347728665,1736086232486,-299.99,7.948e-05,2]
[347728666,1736086232496,-150.0,7.962e-05,2]
[347728667,1736086232505,-150.0,7.977e-05,2]
[347728668,1736086232515,-150.0,7.983e-05,2]
[347728669,1736086232525,-150.0,7.991e-05,2]
[347728670,1736086232535,-873.67,7.999e-05,2]
[347728671,1736086232545,-600.0,8e-05,2]
[347728672,1736086232554,-150.0,8e-05,2]
[347728673,1736086232564,-150.0,8.005e-05,2]
[347728674,1736086232574,-150.0,8.02e-05,2]
[347728675,1736086232583,-500.0,8.027e-05,2]
[347728676,1736086232593,-150.0,8.029e-05,2]
[347728677,1736086232603,-150.0,8.034e-05,2]
[347728678,1736086232613,-150.0,8.049e-05,2]
[347728679,1736086232623,-150.0,8.055e-05,2]
[347728680,1736086232633,-150.0,8.063e-05,2]
[347728681,1736086232642,-206.13,8.066e-05,2]
[347728682,1736086232652,-150.0,8.075e-05,2]
[347728683,1736086232662,-150.0,8.077e-05,2]
[347728684,1736086232672,-6647.28346474,8.088e-05,2]
[347728685,1736086232700,-62653.41813526,8.088e-05,2]
[347728686,1736086232711,-2625.1338,8.088e-05,2]
[347728687,1736086232720,-5039.44,8.088e-05,2]
[347728688,1736086232730,-150.0,8.092e-05,2]
[347728689,1736086232741,-150.0,8.106e-05,2]
[347728690,1736086232751,-150.0,8.11e-05,2]
[347728691,1736086232761,-150.0,8.12e-05,2]
[347728692,1736086232771,-150.0,8.121e-05,2]
[347728693,1736086232781,-150.0,8.135e-05,2]
[347728694,1736086232791,-150.0,8.149e-05,2]
[347728695,1736086232800,-150.0,8.163e-05,2]
[347728696,1736086232810,-150.0,8.164e-05,2]
[347728697,1736086232820,-150.0,8.167e-05,2]
[347728698,1736086232829,-150.0,8.178e-05,2]
[347728699,1736086232841,-37045.4753,8.188e-05,2]
[347728700,1736086232850,-150.0,8.192e-05,2]
[347728701,1736086232860,-150.0,8.207e-05,2]
[347728702,1736086232870,-150.0,8.213e-05,2]
[347728704,1736086232880,-500.0,8.217e-05,2]
[347728705,1736086232889,-500.0,8.217e-05,2]
[347728708,1736086233184,-500.0,8.217e-05,2]
[347728709,1736086233198,-416.84320639,8.217e-05,2]
[347728710,1736086233208,-250000.0,8.218e-05,2]
[347728711,1736086233218,-500.0,8.219e-05,2]
[347728712,1736086233234,-500.0,8.219e-05,2]
[347728713,1736086233246,-500.0,8.219e-05,2]
[347728714,1736086233255,-500.0,8.219e-05,2]
[347728715,1736086233266,-500.0,8.219e-05,2]
[347728716,1736086233276,-500.0,8.219e-05,2]
[347728717,1736086233285,-500.0,8.219e-05,2]
[347728718,1736086233294,-500.0,8.219e-05,2]
[347728719,1736086233304,-500.0,8.219e-05,2]
[347728720,1736086233314,-500.0,8.219e-05,2]
[347728721,1736086233324,-500.0,8.219e-05,2]
[347728722,1736086233334,-500.0,8.219e-05,2]
[347728723,1736086233344,-500.0,8.219e-05,2]
[347728724,1736086233354,-500.0,8.219e-05,2]
[347728725,1736086233364,-500.0,8.219e-05,2]
[347728726,1736086233374,-500.0,8.219e-05,2]
[347728727,1736086233384,-500.0,8.219e-05,2]
[347728728,1736086233399,-500.0,8.219e-05,2]
[347728729,1736086233410,-500.0,8.219e-05,2]
[347728730,1736086233420,-500.0,8.219e-05,2]
[347728731,1736086233429,-500.0,8.219e-05,2]
[347728732,1736086233439,-500.0,8.219e-05,2]
[347728733,1736086233448,-500.0,8.219e-05,2]
[347728734,1736086233458,-500.0,8.219e-05,2]
[347728735,1736086233467,-690.85,8.219e-05,2]
[347728736,1736086233477,-500.0,8.219e-05,2]
[347728737,1736086233487,-500.0,8.219e-05,2]
[347728738,1736086233496,-500.0,8.219e-05,2]
[347728739,1736086233505,-500.0,8.219e-05,2]
[347728740,1736086233515,-500.0,8.219e-05,2]
[347728741,1736086233525,-500.0,8.219e-05,2]
[347728742,1736086233534,-500.0,8.219e-05,2]
[347728743,1736086233544,-500.0,8.219e-05,2]
[347728744,1736086233554,-500.0,8.219e-05,2]
[347728745,1736086233564,-500.0,8.219e-05,2]
[347728746,1736086233573,-1085.7,8.219e-05,2]
[347728747,1736086233584,-500.0,8.219e-05,2]
[347728748,1736086233593,-613.72608689,8.219e-05,2]
[347728749,1736086233603,-720.82,8.219e-05,2]
[347728750,1736086233612,-554.43,8.219e-05,2]
[347728751,1736086233622,-500.0,8.219e-05,2]
[347728752,1736086233632,-500.0,8.219e-05,2]
[347728753,1736086233642,-500.0,8.219e-05,2]
[347728754,1736086233651,-500.0,8.219e-05,2]
[347728755,1736086233661,-500.0,8.219e-05,2]
[347728756,1736086233671,-500.0,8.219e-05,2]
[347728757,1736086233681,-500.0,8.219e-05,2]
[347728758,1736086233691,-500.0,8.219e-05,2]
[347728759,1736086233701,-500.0,8.219e-05,2]
[347728760,1736086233710,-500.0,8.219e-05,2]
[347728761,1736086233720,-500.0,8.219e-05,2]
[347728762,1736086233730,-500.0,8.219e-05,2]
[347728763,1736086233740,-500.0,8.219e-05,2]
[347728764,1736086233750,-500.0,8.219e-05,2]
[347728765,1736086233760,-892.7,8.219e-05,2]
[347728766,1736086233769,-531.08,8.219e-05,2]
[347728767,1736086233779,-500.0,8.219e-05,2]
[347728768,1736086233789,-500.0,8.219e-05,2]
[347728769,1736086233798,-500.0,8.219e-05,2]
[347728770,1736086233808,-500.0,8.219e-05,2]
[347728771,1736086233818,-500.0,8.219e-05,2]
[347728772,1736086233829,-500.0,8.219e-05,2]
[347728773,1736086233840,-500.0,8.219e-05,2]
[347728774,1736086233851,-500.0,8.219e-05,2]
[347728775,1736086233861,-545.76787709,8.219e-05,2]
[347728776,1736086233871,-500.0,8.219e-05,2]
[347728777,1736086233881,-500.0,8.219e-05,2]
[347728778,1736086233891,-500.0,8.219e-05,2]
[347728779,1736086233901,-535.4836573,8.219e-05,2]
[347728780,1736086233912,-500.0,8.219e-05,2]
[347728781,1736086233922,-500.0,8.219e-05,2]
[347728782,1736086233932,-500.0,8.219e-05,2]
[347728783,1736086233941,-740.92,8.219e-05,2]
[347728784,1736086233950,-2696.37,8.219e-05,2]
[347728785,1736086233960,-500.0,8.219e-05,2]
[347728786,1736086233969,-5172.3,8.219e-05,2]
[347728787,1736086233979,-500.0,8.219e-05,2]
[347728788,1736086233988,-500.0,8.219e-05,2]
[347728789,1736086233997,-500.0,8.219e-05,2]
[347728790,1736086234007,-500.0,8.219e-05,2]
[347728791,1736086234017,-500.0,8.219e-05,2]
[347728792,1736086234026,-463.738574,8.219e-05,2]
[347728793,1736086234036,-500.0,8.219e-05,2]
[347728794,1736086234046,-500.0,8.219e-05,2]
[347728795,1736086234055,-500.0,8.219e-05,2]
[347728796,1736086234065,-500.0,8.219e-05,2]
[347728797,1736086234075,-3610.4,8.219e-05,2]
[347728798,1736086234085,-500.0,8.219e-05,2]
[347728799,1736086234095,-500.0,8.219e-05,2]
[347728800,1736086234104,-1720.92,8.219e-05,2]
[347728801,1736086234114,-500.0,8.219e-05,2]
[347728802,1736086234123,-500.0,8.219e-05,2]
[347728803,1736086234133,-500.0,8.219e-05,2]
[347728804,1736086234142,-500.0,8.219e-05,2]
[347728805,1736086234151,-522.99,8.219e-05,2]
[347728806,1736086234161,-500.0,8.219e-05,2]
[347728807,1736086234170,-500.0,8.219e-05,2]
[347728808,1736086234179,-563.17,8.219e-05,2]
[347728809,1736086234189,-500.0,8.219e-05,2]
[347728810,1736086234198,-500.0,8.219e-05,2]
[347728811,1736086234208,-500.0,8.219e-05,2]
[347728812,1736086234218,-9470.22,8.219e-05,2]
[347728813,1736086234231,-826.83,8.219e-05,2]
[347728814,1736086234241,-3794.49,8.219e-05,2]
[347728815,1736086234250,-500.0,8.219e-05,2]
[347728816,1736086234262,-6784.81,8.219e-05,2]
[347728817,1736086234271,-500.0,8.219e-05,2]
[347728818,1736086234281,-500.0,8.219e-05,2]
[347728819,1736086234290,-588.06,8.219e-05,2]
[347728820,1736086234300,-500.0,8.219e-05,2]
[347728821,1736086234312,-500.0,8.219e-05,2]
[347728822,1736086234322,-500.0,8.219e-05,2]
[347728823,1736086234331,-500.0,8.219e-05,2]
[347728824,1736086234341,-500.0,8.219e-05,2]
[347728825,1736086234350,-500.0,8.219e-05,2]
[347728826,1736086234360,-500.0,8.219e-05,2]
[347728827,1736086234369,-794.51,8.219e-05,2]
[347728828,1736086234379,-500.0,8.219e-05,2]
[347728829,1736086234389,-500.0,8.219e-05,2]
[347728830,1736086234399,-500.0,8.219e-05,2]
[347728831,1736086234410,-500.0,8.219e-05,2]
[347728832,1736086234420,-500.0,8.219e-05,2]
[347728833,1736086234430,-500.0,8.219e-05,2]
[347728834,1736086234440,-500.0,8.219e-05,2]
[347728835,1736086234450,-2104.73,8.219e-05,2]
[347728836,1736086234460,-500.0,8.219e-05,2]
[347728837,1736086234470,-500.0,8.219e-05,2]
[347728838,1736086234479,-500.0,8.219e-05,2]
[347728839,1736086234489,-681.56,8.219e-05,2]
[347728840,1736086234499,-500.0,8.219e-05,2]
[347728841,1736086234509,-500.0,8.219e-05,2]
[347728842,1736086234519,-500.0,8.219e-05,2]
[347728843,1736086234530,-500.0,8.219e-05,2]
[347728844,1736086234540,-357.5953192,8.219e-05,2]
[347728845,1736086234550,-500.0,8.219e-05,2]
[347728846,1736086234560,-1028.13,8.219e-05,2]
[347728847,1736086234570,-500.0,8.219e-05,2]
[347728848,1736086234580,-2275.82,8.219e-05,2]
[347728849,1736086234590,-500.0,8.219e-05,2]
[347728850,1736086234599,-500.0,8.219e-05,2]
[347728851,1736086234609,-799.97,8.219e-05,2]
[347728852,1736086234619,-562.98,8.219e-05,2]
[347728853,1736086234630,-500.0,8.219e-05,2]